fUST/lending_fUST_20250225
["ID","MTS","AMOUNT","RATE_DAILY","PERIOD"]
[354401657,1740471255565,-345.92,0.00066301,120]
[354401658,1740471255592,-500.0,0.00066301,120]
[354401659,1740471255618,-1947.48,0.00066301,120]
[354401660,1740471255644,-500.0,0.00066575,7]
[354401661,1740471255669,-1947.48,0.00066575,120]
[354401662,1740471255695,-500.0,0.00066849,7]
[354401663,1740471255720,-1947.48,0.00066849,120]
[354401664,1740471255746,-500.0,0.00067123,7]
[354401665,1740471255770,-1947.48,0.00067123,120]
[354401666,1740471255795,-500.0,0.00067397,7]
[354401667,1740471255822,-1947.48,0.00067397,120]
[354401668,1740471255847,-500.0,0.00067671,7]
[354401669,1740471255873,-1947.48,0.00067671,120]
[354401670,1740471255898,-500.0,0.00067945,7]
[354401671,1740471255926,-1947.48,0.00067945,120]
[354401672,1740471255951,-500.0,0.00068219,120]
[354401673,1740471255975,-500.0,0.00068219,7]
[354401674,1740471256001,-1947.48,0.00068219,120]
[354401675,1740471256025,-500.0,0.00068493,120]
[354401676,1740471256049,-500.0,0.00068493,7]
[354401677,1740471256075,-1947.48,0.00068493,120]
[354401678,1740471256099,-500.0,0.00068767,120]
[354401679,1740471256125,-500.0,0.00068767,7]
[354401680,1740471256148,-500.0,0.00069041,120]
[354401681,1740471256174,-500.0,0.00069041,7]
[354401682,1740471256197,-1000.0,0.0006912,60]
[354401683,1740471256221,-1000.0,0.0006914,60]
[354401684,1740471256245,-1000.0,0.00069154,60]
[354401685,1740471256270,-500.0,0.00069315,120]
[354401686,1740471256295,-500.0,0.00069315,7]
[354401687,1740471256320,-500.0,0.00069589,120]
[354401688,1740471256348,-500.0,0.00069589,7]
[354401689,1740471256371,-458.01,0.00069863,120]
[354401690,1740471256397,-500.0,0.00069863,7]
[354401691,1740471256423,-500.0,0.00070136,7]
[354401692,1740471256448,-500.0,0.0007041,7]
[354401693,1740471256474,-318.70567007,0.00070684,7]
[354401694,1740471256498,-15808.64891254,0.00092,120]
[354401695,1740471256522,-68560.89578189,0.00093,120]
[354401696,1740471256547,-99247.76972508,0.00094,120]
[354401697,1740471303164,11625.98637899,0.0001798,7]
[354401698,1740471367816,-834.3019851,0.000649,120]
[354401699,1740471367844,-606.19190068,0.00065753,120]
[354401700,1740471367876,-500.0,0.00065753,120]
[354401701,1740471367907,-210.001472,0.00065753,120]
[354401702,1740471367943,-500.0,0.00065753,120]
[354401703,1740471367979,-500.0,0.00065753,120]
[354401704,1740471368009,-503.29799771,0.00065753,120]
[354401705,1740471368040,-230.69864141,0.00065753,120]
[354401706,1740471368071,-500.0,0.00065753,120]
[354401707,1740471368100,-500.0,0.00065753,120]
[354401708,1740471368290,-500.0,0.00065753,120]
[354401709,1740471368317,-578.42,0.00065753,120]
[354401710,1740471368343,-500.0,0.00065753,120]
[354401711,1740471368368,-500.0,0.00065753,120]
[354401712,1740471368392,-500.0,0.00065753,120]
[354401713,1740471368421,-502.52570483,0.00065753,120]
[354401714,1740471368447,-505.42047916,0.00065753,120]
[354401715,1740471368474,-500.0,0.00065753,120]
[354401716,1740471368499,-738.44,0.00065753,120]
[354401717,1740471368526,-1000.0,0.00065753,20]
[354401718,1740471368551,-500.0,0.00065753,120]
[354401719,1740471368577,-500.0,0.00065753,120]
[354401720,1740471368602,-500.0,0.00065753,120]
[354401721,1740471368626,-500.0,0.00065753,120]
[354401722,1740471368653,-500.0,0.00065753,120]
[354401723,1740471368681,-500.0,0.00065753,120]
[354401724,1740471368706,-4310.97012148,0.000659,16]
[354401725,1740471368734,-198.01,0.00066027,120]
[354401726,1740471368760,-500.0,0.00066027,120]
[354401727,1740471368785,-500.0,0.00066027,120]
[354401728,1740471368810,-500.0,0.00066027,120]
[354401729,1740471368838,-171.79,0.00066027,120]
[354401730,1740471368864,-500.0,0.00066027,120]
[354401731,1740471368891,-500.0,0.00066027,120]
[354401732,1740471368921,-500.0,0.00066027,120]
[354401733,1740471368948,-500.0,0.00066027,120]
[354401734,1740471368979,-738.44,0.00066027,120]
[354401735,1740471369005,-1000.0,0.00066027,20]
[354401736,1740471369030,-503.64182897,0.00066027,120]
[354401737,1740471369057,-500.0,0.00066027,120]
[354401738,1740471369086,-500.0,0.00066301,120]
[354401739,1740471369111,-500.0,0.00066301,120]
[354401740,1740471369136,-501.66677192,0.00066301,120]
[354401741,1740471369164,-500.0,0.00066301,120]
[354401742,1740471369191,-500.0,0.00066301,120]
[354401743,1740471369217,-333.34,0.00066301,120]
[354401744,1740471369243,-738.44,0.00066301,120]
[354401745,1740471369268,-1000.0,0.00066301,20]
[354401746,1740471369292,-500.0,0.00066301,120]
[354401747,1740471369317,-500.0,0.00066575,120]
[354401748,1740471369341,-500.0,0.00066575,120]
[354401749,1740471369364,-738.44,0.00066575,120]
[354401750,1740471369388,-1000.0,0.00066575,20]
[354401751,1740471369417,-500.0,0.00066575,120]
[354401752,1740471369445,-560.99,0.00066849,120]
[354401753,1740471369471,-500.0,0.00066849,120]
[354401754,1740471369496,-738.44,0.00066849,120]
[354401755,1740471369520,-1082.31,0.00066849,20]
[354401756,1740471369544,-500.0,0.00066849,120]
[354401757,1740471369569,-500.0,0.00067123,120]
[354401758,1740471369593,-738.44,0.00067123,120]
[354401759,1740471369619,-500.0,0.00067123,120]
[354401760,1740471369643,-500.0,0.00067397,120]
[354401761,1740471369675,-738.44,0.00067397,120]
[354401762,1740471369702,-500.0,0.00067397,120]
[354401763,1740471369729,-500.0,0.00067671,120]
[354401764,1740471369757,-738.44,0.00067671,120]
[354401765,1740471369784,-500.0,0.00067671,120]
[354401766,1740471369814,-500.0,0.00067945,120]
[354401767,1740471369843,-738.44,0.00067945,120]
[354401768,1740471369872,-500.0,0.00067945,120]
[354401769,1740471369904,-500.0,0.00068219,120]
[354401770,1740471369941,-738.44,0.00068219,120]
[354401771,1740471369977,-427.21,0.00068219,120]
[354401772,1740471370007,-525.82,0.00068493,120]
[354401773,1740471370037,-738.44,0.00068493,120]
[354401774,1740471370068,-1947.48,0.00068767,120]
[354401775,1740471370095,-738.44,0.00068767,120]
[354401776,1740471370124,-1947.48,0.00069041,120]
[354401777,1740471370151,-738.44,0.00069041,120]
[354401778,1740471370183,-1947.48,0.00069315,120]
[354401779,1740471370210,-738.44,0.00069315,120]
[354401780,1740471370239,-1947.48,0.00069589,120]
[354401781,1740471370264,-738.44,0.00069589,120]
[354401782,1740471370292,-1947.48,0.00069863,120]
[354401783,1740471370317,-738.44,0.00069863,120]
[354401784,1740471370345,-1947.48,0.00070136,120]
[354401785,1740471370370,-738.44,0.00070136,120]
[354401786,1740471370397,-1947.48,0.0007041,120]
[354401787,1740471370425,-738.44,0.0007041,120]
[354401788,1740471370451,-1947.48,0.00070684,120]
[354401789,1740471370475,-738.44,0.00070684,120]
[354401790,1740471370502,-1947.48,0.00070958,120]
[354401791,1740471370526,-738.44,0.00070958,120]
[354401792,1740471370551,-508.22969677,0.00071231,120]
[354401793,1740471370577,-603.34087825,0.00071231,120]
[354401794,1740471370605,-500.0,0.00071231,120]
[354401795,1740471370633,-506.35505978,0.00071231,120]
[354401796,1740471370667,-608.69848931,0.00071231,120]
[354401797,1740471370695,-504.95618418,0.00071231,120]
[354401798,1740471370725,-505.14071531,0.00071231,120]
[354401799,1740471370753,-500.0,0.00071231,120]
[354401800,1740471370872,-505.20306321,0.00071231,120]
[354401801,1740471370903,-1947.48,0.00071232,120]
[354401802,1740471370935,-738.44,0.00071232,120]
[354401803,1740471370967,-1947.48,0.00071506,120]
[354401804,1740471370998,-738.44,0.00071506,120]
[354401805,1740471371030,-1947.48,0.0007178,120]
[354401806,1740471371059,-738.44,0.0007178,120]
[354401807,1740471371095,-1947.67681175,0.00072054,120]
[354401808,1740471371128,-738.614447,0.00072054,120]
[354401809,1740471371205,500.0,0.00071231,120]
[354401810,1740471371260,500.0,0.00071505,120]
[354401811,1740471371776,500.0,0.00071231,120]
[354401812,1740471372002,500.0,0.00065753,120]
[354401813,1740471372241,500.0,0.00066027,120]
[354401814,1740471372482,500.0,0.00066301,120]
[354401815,1740471372731,500.0,0.00066575,120]
[354401816,1740471372995,500.0,0.00066849,120]
[354401817,1740471373242,500.0,0.00067123,120]
[354401818,1740471374034,500.0,0.00067397,120]
[354401819,1740471374290,500.0,0.00067671,120]
[354401820,1740471374793,500.0,0.00067945,120]
[354401821,1740471375062,269.7,0.00068219,120]
[354401822,1740471375456,505.36323753,0.00071231,120]
[354401823,1740471377309,500.0,0.00071231,120]
[354401824,1740471377340,500.0,0.00071231,120]
[354401825,1740471377562,500.0,0.00071505,120]
[354401826,1740471377819,500.0,0.00071779,120]
[354401827,1740471378294,500.0,0.00072053,120]
[354401828,1740471378692,500.0,0.00072327,120]
[354401829,1740471378938,500.0,0.00072601,120]
[354401830,1740471379235,500.0,0.00072875,120]
[354401831,1740471379479,272.56,0.00073149,120]
[354401832,1740471379870,2420.0,0.00037358,2]
[354401833,1740471380541,506.13346963,0.00071231,120]
[354401834,1740471381214,500.0,0.00065753,120]
[354401835,1740471381458,500.0,0.00066027,120]
[354401836,1740471382027,503.88571331,0.00071231,120]
[354401837,1740471384713,373.91877407,0.00071231,120]
[354401840,1740471470961,200.0,0.00032,30]
[354401841,1740471573522,10004.48700598,0.00035827,2]
[354401842,1740471603094,778.33608408,0.0001798,7]
[354401852,1740471952146,-403.8959639,0.000365,60]
[354401853,1740471952170,-401.91431634,0.00036541,2]
[354401854,1740471952191,-1841.43994163,0.0003685,101]
[354401855,1740471952212,-1000.0,0.000369,2]
[354401856,1740471952238,-300.0,0.00036949,2]
[354401857,1740471952259,-1000.0,0.0003695,10]
[354401858,1740471952282,-39.75274461,0.0003695,10]
[354401864,1740472049418,429.46398556,0.00036541,2]
[354401865,1740472054124,-960.24725539,0.0003695,10]
[354401866,1740472054152,-1000.0,0.0003695,10]
[354401867,1740472054183,-1000.0,0.0003695,30]
[354401868,1740472054210,-1100.0,0.00036956,2]
[354401869,1740472054237,-1262.73863344,0.00037358,2]
[354401870,1740472074337,7244.76226219,0.00016,2]
[354401871,1740472088360,1314.99099184,0.00034728,12]
[354401872,1740472092157,3107.00553442,0.0003487,4]
[354401873,1740472113023,444.0987884,0.00015641,2]
[354401874,1740472114479,7596.123335,0.00023,2]
[354401875,1740472116128,24460.24058379,0.00016,2]
[354401876,1740472116714,6527.04303629,0.00015,2]
[354401877,1740472116769,14795.76708318,0.0001599,2]
[354401878,1740472117292,11901.15891584,0.00018,15]
[354401879,1740472117320,494276.92404745,0.00018,15]
[354401880,1740472118416,70631.05326592,0.00036541,10]
[354401882,1740472119398,10014.47158201,0.00026,30]
[354401883,1740472120911,150.99999903,0.00036541,120]
[354401884,1740472154247,-13058.31220013,0.0003499,30]
[354401885,1740472154269,-2287.90136656,0.00037358,2]
[354401886,1740472154290,-351.79046158,0.000388,2]
[354401887,1740472154311,-444.61838647,0.00039174,2]
[354401888,1740472154331,-4377.96349087,0.000399,8]
[354401889,1740472154351,-188.4075016,0.00052925,2]
[354401890,1740472154373,-750.0,0.00054794,120]
[354401891,1740472154393,-928.1413531,0.00062945,2]
[354401892,1740472155537,1577.74693757,0.00037258,104]
[354401893,1740472156180,3224.99242358,0.00058,120]
[354401950,1740472232473,-150.0,0.000638,4]
[354401951,1740472232483,-3000.0,0.00064,120]
[354401953,1740472232493,-2112.2201625,0.00064,120]
[354401954,1740472232638,-252.68446262,0.00064,120]
[354401955,1740472232651,-11284.0249066,0.00064,120]
[354401956,1740472232694,-75762.14255133,0.00064,120]
[354401957,1740472232704,-4442.72374815,0.000649,16]
[354401958,1740472232713,-174.50501312,0.000649,28]
[354401959,1740472232722,-500.0,0.00065,120]
[354401960,1740472232732,-537.98137208,0.00065,120]
[354401961,1740472232742,-503.86848576,0.00065753,120]
[354401962,1740472232752,-502.25337427,0.00065753,120]
[354401963,1740472232761,-500.0,0.00065753,120]
[354401964,1740472232771,-500.0,0.00065753,120]
[354401965,1740472232780,-500.0,0.00065753,120]
[354401966,1740472232791,-500.0,0.00065753,120]
[354401967,1740472232801,-600.0,0.00065753,120]
[354401968,1740472232810,-500.0,0.00065753,120]
[354401969,1740472232819,-500.0,0.00065753,120]
[354401970,1740472232829,-500.0,0.00065753,120]
[354401971,1740472232838,-500.0,0.00065753,120]
[354401972,1740472232847,-500.0,0.00065753,120]
[354401973,1740472232856,-500.0,0.00065753,120]
[354401974,1740472232866,-500.0,0.00065753,120]
[354401975,1740472232875,-500.0,0.00065753,120]
[354401976,1740472232885,-500.0,0.00065753,120]
[354401977,1740472232895,-896.11,0.00065753,120]
[354401978,1740472232904,-500.0,0.00065753,120]
[354401979,1740472232914,-1239.01,0.00065753,120]
[354401980,1740472232923,-500.0,0.00065753,120]
[354401981,1740472232933,-1175.19,0.00065753,120]
[354401982,1740472232944,-500.0,0.00065753,120]
[354401983,1740472232953,-1648.55,0.00065753,120]
[354401984,1740472232963,-500.0,0.00065753,120]
[354401985,1740472232972,-500.0,0.00065753,120]
[354401986,1740472232982,-2835.23,0.00065753,3]
[354401987,1740472232991,-10464.78,0.00065753,120]
[354401988,1740472233001,-500.0,0.00065753,120]
[354401989,1740472233011,-582.06,0.00065753,120]
[354401990,1740472233020,-500.0,0.00065753,120]
[354401991,1740472233030,-500.0,0.00065753,120]
[354401992,1740472233041,-568.42,0.00065753,120]
[354401993,1740472233051,-503.47,0.00065753,7]
[354401994,1740472233061,-500.0,0.00065753,120]
[354401995,1740472233071,-500.0,0.00065753,120]
[354401996,1740472233081,-500.0,0.00065753,120]
[354401997,1740472233091,-500.0,0.00065753,120]
[354401998,1740472233216,-524.12817267,0.00065753,120]
[354401999,1740472233229,-500.0,0.00065753,120]
[354402000,1740472233240,-500.0,0.00065753,120]
[354402001,1740472233250,-500.0,0.00065753,120]
[354402002,1740472233261,-500.0,0.00065753,120]
[354402003,1740472233271,-500.0,0.00065753,120]
[354402004,1740472233284,-500.0,0.00065753,120]
[354402005,1740472233295,-500.0,0.00065753,120]
[354402006,1740472233305,-500.0,0.00065753,120]
[354402007,1740472233315,-927.79,0.00065753,120]
[354402008,1740472233325,-500.0,0.00065753,120]
[354402009,1740472233335,-500.0,0.00065753,120]
[354402010,1740472233345,-500.0,0.00065753,120]
[354402011,1740472233354,-500.0,0.00065753,120]
[354402012,1740472233364,-2229.76,0.00065753,120]
[354402013,1740472233374,-500.0,0.00065753,120]
[354402014,1740472233384,-500.0,0.00065753,120]
[354402015,1740472233394,-500.0,0.00065753,120]
[354402016,1740472233404,-500.0,0.00065753,120]
[354402017,1740472233414,-716.71,0.00065753,120]
[354402018,1740472233424,-20454.37,0.00065753,7]
[354402019,1740472233434,-508.22969677,0.00065753,120]
[354402020,1740472233444,-603.34087825,0.00065753,120]
[354402021,1740472233454,-900.61,0.00065753,120]
[354402022,1740472233464,-500.0,0.00065753,120]
[354402023,1740472233474,-506.35505978,0.00065753,120]
[354402024,1740472233484,-1621.79,0.00065753,120]
[354402025,1740472233493,-500.0,0.00065753,120]
[354402026,1740472233502,-500.0,0.00065753,120]
[354402027,1740472233512,-500.0,0.00065753,120]
[354402028,1740472233522,-500.0,0.00065753,120]
[354402029,1740472233533,-500.0,0.00065753,120]
[354402030,1740472233544,-500.0,0.00065753,120]
[354402031,1740472233553,-500.0,0.00065753,120]
[354402032,1740472233563,-259.23954922,0.0006589,6]
[354402042,1740472238408,-516.17,0.00065743,10]
[354402043,1740472238418,-37.94144072,0.00065753,120]
[354402045,1740472238429,-462.05855928,0.00065753,120]
[354402046,1740472238443,-500.0,0.00065753,120]
[354402047,1740472238452,-500.0,0.00065753,120]
[354402048,1740472238462,-301.30575848,0.00065753,120]
[354402049,1740472238473,-265.78424152,0.00065753,120]
[354402050,1740472238482,-17667.97956598,0.0006589,6]
[354402051,1740472238492,-1170.87118161,0.0006589,6]
[354402052,1740472238501,-5520.7514063,0.000659,120]
[354402053,1740472238512,-345.05928545,0.000659,120]
[354402057,1740472240426,-1647.77,0.00065753,120]
[354402058,1740472240436,-690.1,0.00065753,120]
[354402059,1740472240445,-402.08898864,0.00065753,120]
[354402060,1740472240457,-97.91101136,0.00065753,120]
[354402061,1740472240466,-18146.10858272,0.000659,120]
[354402062,1740472240477,-786.8,0.000659,120]
[354402063,1740472240493,-137060.209126,0.000659,120]
[354402064,1740472240502,-165298.95,0.000659,30]
[354402065,1740472240511,-167.6748029,0.00065917,2]
[354402066,1740472240520,-5975.73970506,0.00066017,6]
[354402067,1740472240529,-390.29039387,0.00066017,6]
[354402068,1740472240539,-506.96710252,0.00066026,120]
[354402069,1740472240548,-500.0,0.00066026,120]
[354402070,1740472240557,-500.0,0.00066026,120]
[354402071,1740472240566,-500.0,0.00066026,120]
[354402072,1740472240576,-500.0,0.00066026,120]
[354402073,1740472240585,-562.96163148,0.00066026,120]
[354402074,1740472240594,-500.0,0.00066026,120]
[354402075,1740472240604,-500.0,0.00066026,120]
[354402076,1740472240613,-501.13943489,0.00066026,120]
[354402077,1740472240622,-500.0,0.00066026,120]
[354402078,1740472240632,-500.0,0.00066026,120]
[354402079,1740472240641,-500.0,0.00066026,120]
[354402080,1740472240650,-500.0,0.00066026,120]
[354402081,1740472240659,-500.0,0.00066026,120]
[354402082,1740472240669,-500.0,0.00066026,120]
[354402083,1740472240678,-600.0837,0.00066026,120]
[354402084,1740472240687,-500.0,0.00066026,120]
[354402085,1740472240696,-315.30120717,0.00066026,120]
[354402086,1740472240705,-500.0,0.00066026,120]
[354402087,1740472240714,-500.0,0.00066026,120]
[354402088,1740472240724,-500.0,0.00066026,120]
[354402089,1740472240733,-500.0,0.00066026,120]
[354402090,1740472240742,-500.0,0.00066026,120]
[354402091,1740472240751,-500.0,0.00066026,120]
[354402092,1740472240760,-500.0,0.00066026,120]
[354402093,1740472240770,-500.0,0.00066026,120]
[354402094,1740472240779,-500.0,0.00066026,120]
[354402095,1740472240789,-500.0,0.00066026,120]
[354402096,1740472240798,-500.0,0.00066026,120]
[354402097,1740472240807,-500.0,0.00066026,30]
[354402098,1740472240817,-514.61672996,0.00066027,120]
[354402099,1740472240827,-500.0,0.00066027,120]
[354402100,1740472240836,-500.0,0.00066027,120]
[354402101,1740472240846,-500.0,0.00066027,120]
[354402102,1740472240855,-582.52,0.00066027,120]
[354402103,1740472240864,-500.0,0.00066027,120]
[354402104,1740472240873,-500.0,0.00066027,120]
[354402105,1740472240883,-500.0,0.00066027,120]
[354402106,1740472240892,-896.11,0.00066027,120]
[354402107,1740472240901,-1175.19,0.00066027,120]
[354402108,1740472240910,-1648.55,0.00066027,120]
[354402109,1740472240920,-500.0,0.00066027,120]
[354402110,1740472240929,-500.0,0.00066027,120]
[354402111,1740472240938,-2835.23,0.00066027,3]
[354402112,1740472240947,-10464.78,0.00066027,120]
[354402113,1740472240957,-500.0,0.00066027,120]
[354402114,1740472240966,-582.06,0.00066027,120]
[354402115,1740472240977,-500.0,0.00066027,120]
[354402116,1740472240989,-568.42,0.00066027,120]
[354402117,1740472241000,-503.47,0.00066027,7]
[354402118,1740472241101,-500.0,0.00066027,120]
[354402119,1740472241111,-500.0,0.00066027,120]
[354402120,1740472241122,-500.0,0.00066027,120]
[354402121,1740472241132,-500.0,0.00066027,120]
[354402122,1740472241143,-500.0,0.00066027,120]
[354402123,1740472241152,-500.0,0.00066027,120]
[354402124,1740472241161,-500.0,0.00066027,120]
[354402125,1740472241171,-927.79,0.00066027,120]
[354402126,1740472241182,-500.0,0.00066027,120]
[354402127,1740472241192,-500.0,0.00066027,120]
[354402128,1740472241202,-500.0,0.00066027,120]
[354402129,1740472241213,-2229.76,0.00066027,120]
[354402130,1740472241223,-500.0,0.00066027,120]
[354402131,1740472241237,-500.0,0.00066027,120]
[354402132,1740472241247,-500.0,0.00066027,120]
[354402133,1740472241259,-716.71,0.00066027,120]
[354402134,1740472241270,-20454.37,0.00066027,7]
[354402135,1740472241281,-900.61,0.00066027,120]
[354402136,1740472241293,-1621.79,0.00066027,120]
[354402137,1740472241305,-500.0,0.00066027,120]
[354402138,1740472241317,-500.0,0.00066027,120]
[354402139,1740472241328,-500.0,0.00066027,120]
[354402140,1740472241340,-500.0,0.00066027,120]
[354402141,1740472241350,-500.0,0.00066027,120]
[354402142,1740472241361,-500.0,0.00066027,120]
[354402143,1740472241373,-500.0,0.00066027,120]
[354402144,1740472241386,-567.09,0.00066027,120]
[354402145,1740472241397,-1647.77,0.00066027,120]
[354402146,1740472241412,-690.1,0.00066027,120]
[354402147,1740472241424,-5975.73970506,0.00066291,6]
[354402148,1740472241436,-390.29039387,0.00066291,6]
[354402149,1740472241449,-500.0,0.000663,120]
[354402150,1740472241461,-535.19,0.000663,120]
[354402151,1740472241472,-579.0,0.000663,120]
[354402152,1740472241485,-500.0,0.000663,120]
[354402153,1740472241497,-356.64,0.000663,120]
[354402154,1740472241509,-500.0,0.000663,120]
[354402155,1740472241519,-500.0,0.000663,120]
[354402156,1740472241530,-177.097,0.00066301,120]
[354402157,1740472241545,-500.0,0.00066301,120]
[354402158,1740472241556,-499.0,0.00066301,120]
[354402159,1740472241567,-500.0,0.00066301,120]
[354402160,1740472241577,-500.0,0.00066301,120]
[354402161,1740472241592,-896.11,0.00066301,120]
[354402162,1740472241602,-1175.19,0.00066301,120]
[354402163,1740472241613,-1648.55,0.00066301,120]
[354402164,1740472241625,-500.0,0.00066301,120]
[354402165,1740472241636,-500.0,0.00066301,120]
[354402166,1740472241647,-2835.23,0.00066301,3]
[354402167,1740472241657,-10464.78,0.00066301,120]
[354402168,1740472241667,-500.0,0.00066301,120]
[354402169,1740472241678,-582.06,0.00066301,120]
[354402170,1740472241690,-500.0,0.00066301,120]
[354402171,1740472241700,-568.42,0.00066301,120]
[354402172,1740472241710,-503.47,0.00066301,7]
[354402173,1740472241720,-500.0,0.00066301,120]
[354402174,1740472241731,-459.91401659,0.00066301,120]
[354402175,1740472241741,-500.0,0.00066301,120]
[354402176,1740472241752,-500.0,0.00066301,120]
[354402177,1740472241762,-500.0,0.00066301,120]
[354402178,1740472241772,-500.0,0.00066301,120]
[354402179,1740472241782,-500.0,0.00066301,120]
[354402180,1740472241797,-927.79,0.00066301,120]
[354402181,1740472241812,-500.0,0.00066301,120]
[354402182,1740472241823,-500.0,0.00066301,120]
[354402183,1740472241834,-2229.76,0.00066301,120]
[354402184,1740472241847,-500.0,0.00066301,120]
[354402185,1740472241858,-500.0,0.00066301,120]
[354402186,1740472241869,-649.94,0.00066301,120]
[354402187,1740472241880,-716.71,0.00066301,120]
[354402188,1740472241892,-20454.37,0.00066301,7]
[354402189,1740472241903,-900.61,0.00066301,120]
[354402190,1740472241914,-1621.79,0.00066301,120]
[354402191,1740472241925,-500.0,0.00066301,120]
[354402192,1740472241935,-500.0,0.00066301,120]
[354402193,1740472241947,-500.0,0.00066301,120]
[354402194,1740472241957,-500.0,0.00066301,120]
[354402195,1740472241971,-500.0,0.00066301,120]
[354402196,1740472241981,-608.69848931,0.00066301,120]
[354402197,1740472241996,-567.09,0.00066301,120]
[354402198,1740472242006,-1647.77,0.00066301,120]
[354402199,1740472242017,-690.1,0.00066301,120]
[354402200,1740472242027,-5975.73970506,0.00066565,6]
[354402201,1740472242043,-390.29039387,0.00066565,6]
[354402202,1740472242054,-500.0,0.00066574,120]
[354402203,1740472242064,-500.0,0.00066574,120]
[354402204,1740472242074,-500.0,0.00066574,120]
[354402205,1740472242083,-257.69,0.00066575,120]
[354402206,1740472242093,-226.5,0.00066575,120]
[354402207,1740472242104,-500.0,0.00066575,120]
[354402208,1740472242114,-896.11,0.00066575,120]
[354402209,1740472242124,-1175.19,0.00066575,120]
[354402210,1740472242135,-1648.55,0.00066575,120]
[354402211,1740472242145,-500.0,0.00066575,120]
[354402212,1740472242155,-500.0,0.00066575,120]
[354402213,1740472242166,-2835.23,0.00066575,3]
[354402214,1740472242176,-10464.78,0.00066575,120]
[354402215,1740472242187,-500.0,0.00066575,120]
[354402216,1740472242198,-582.06,0.00066575,120]
[354402217,1740472242209,-500.0,0.00066575,120]
[354402218,1740472242221,-568.42,0.00066575,120]
[354402219,1740472242233,-503.47,0.00066575,7]
[354402220,1740472242243,-500.0,0.00066575,120]
[354402221,1740472242253,-500.0,0.00066575,120]
[354402222,1740472242264,-500.0,0.00066575,120]
[354402223,1740472242273,-500.0,0.00066575,120]
[354402224,1740472242286,-500.0,0.00066575,120]
[354402225,1740472242302,-927.79,0.00066575,120]
[354402226,1740472242315,-500.0,0.00066575,120]
[354402227,1740472242329,-500.0,0.00066575,120]
[354402228,1740472242341,-2229.76,0.00066575,120]
[354402229,1740472242352,-500.0,0.00066575,120]
[354402230,1740472242363,-500.0,0.00066575,120]
[354402231,1740472242376,-716.71,0.00066575,120]
[354402232,1740472242389,-20454.37,0.00066575,7]
[354402233,1740472242401,-900.61,0.00066575,120]
[354402234,1740472242414,-1621.79,0.00066575,120]
[354402235,1740472242427,-500.0,0.00066575,120]
[354402236,1740472242440,-268.53428588,0.00066575,120]
[354402237,1740472242452,-500.0,0.00066575,120]
[354402238,1740472242464,-500.0,0.00066575,120]
[354402239,1740472242477,-500.0,0.00066575,120]
[354402240,1740472242489,-567.09,0.00066575,120]
[354402241,1740472242502,-1647.77,0.00066575,120]
[354402242,1740472242512,-690.1,0.00066575,120]
[354402243,1740472242524,-152.35481227,0.00066834,15]